Cogmind - Beta 16.1 @@@ ROGUE MODE // 2026.04.16 @ 11:58:41 Player: Yggdrasil Burnes Result: Destroyed by G-34 Mercenary with Small Laser Performance ------------- Evolutions (1) 500 Regions Visited (2) 400 Robots Destroyed (31) 155 Value Destroyed (868) 868 Prototype IDs (1) 20 Alien Tech Used (0) 0 Bonus (0) 0 TOTAL SCORE: 1943 Bonus ------- None Cogmind --------- Core Integrity 0/400 Matter 300/300 Energy 100/100 System Corruption 0% Temperature Cool (6) Movement Core (1450) Ox28 Location -9/Materials Parts ------- > --- POWER (1) -------- (None) > --- PROPULSION (4) --- (None) > --- UTILITY (2) ------ Huge Storage Unit > --- WEAPON (2) ------- Particle Gun Particle Gun > --- INVENTORY (25) --- Small Storage Unit Small Storage Unit Field Recycling Unit (0) Medium Laser Particle Gun Particle Gun Particle Gun Grenade Launcher Rocket Launcher Peak State ------------ > --- POWER ------------ Ion Engine > --- PROPULSION ------- Aluminum Leg Aluminum Leg Aluminum Leg Improved Aluminum Leg > --- UTILITY ---------- Huge Storage Unit Seismic Detector > --- WEAPON ----------- Particle Gun Heavy Assault Rifle > --- INVENTORY -------- Improved Aluminum Leg Improved Aluminum Leg Improved Aluminum Leg Improved Aluminum Leg Small Storage Unit Small Storage Unit Structural Scanner Terrain Scan Processor Improved EM Shotgun Medium Laser Particle Gun Particle Gun Particle Gun Particle Gun Grenade Launcher Grenade Launcher Rocket Launcher Rocket Launcher Rocket Launcher [Rating: 15] Favorites ----------- Power Light Nuclear Core Engine Light Ion Engine Power Core Light Nuclear Core Propulsion Aluminum Leg Leg Aluminum Leg Utility Huge Storage Unit Device Seismic Detector Storage Huge Storage Unit Weapon Particle Gun Energy Gun Particle Gun Ballistic Gun Light Assault Rifle Launcher Rocket Launcher Build | -11 -10 -9 ------- Run | Yrd Mat Mat Slots Evolved 2 | . . 2 Power . | . . . Propulsion 2 | . . 2 Utility . | . . . Weapon . | . . . Parts Attached 28 | 5 4 19 Power 3 | 1 1 1 Engine 2 | 1 . 1 Core 1 | . 1 . Reactor . | . . . Propulsion 9 | 2 . 7 Treads . | . . . Leg 9 | 2 . 7 Wheel . | . . . Hover . | . . . Flight . | . . . Utility 4 | 1 1 2 Device 2 | . 1 1 Storage 2 | 1 . 1 Processor . | . . . Hackware . | . . . Protection . | . . . Artifact . | . . . Weapon 12 | 1 2 9 Energy Gun 7 | 1 1 5 Energy Cannon . | . . . Ballistic Gun 2 | . 1 1 Ballistic Cannon . | . . . Launcher 3 | . . 3 Special Weapon . | . . . Impact Weapon . | . . . Slashing Weapon . | . . . Piercing Weapon . | . . . Special Melee Weapon . | . . . Unidentified Prototypes . | . . . Parts Lost 16 | . 1 15 Power 2 | . . 2 Propulsion 8 | . . 8 Utility 2 | . . 2 Weapon 4 | . 1 3 Highest Loss Streak 5 | . 1 5 To Critical Strikes . | . . . Average Backups 10 | 3 6 12 Power . | 1 1 . Propulsion 1 | 1 1 1 Utility 3 | . 1 3 Weapon 5 | . 2 6 Tool/Special . | . . . Unused Backups 10 | . 4 6 Power 1 | . 1 . Propulsion 2 | . 2 . Utility 3 | . . 3 Weapon 4 | . 1 3 Tool/Special . | . . . Average Slot Usage (%) 82 | . 97 77 Engine 3 | . 10 1 Core 2 | . 3 2 Leg 34 | . 28 36 Device 8 | . 11 7 Storage 11 | . 14 11 Energy Gun 9 | . 14 8 Ballistic Gun 6 | . 14 4 Launcher 5 | . . 6 Peak Build Rating 15 | 5 9 15 Average Rating 10 | 3 7 12 On Entrance 4 | . 5 9 Avg Prop Armor Cover (%) . | . . . Naked Turns . | . . . Heaviest Build 92 | 10 14 92 Greatest Support 52 | 20 20 52 Greatest Overweight (x) 28 | . . 28 Average Overweight (x) 1 | . . 1 Largest Inventory Capacity 25 | 8 8 25 Average Capacity 19 | 7 8 23 Most Carried 19 | 5 8 19 Average Carried 11 | 3 6 12 Final Capacity 25 | 8 8 25 Final Carried 9 | 4 7 9 Class Distribution -------------------- 80% | Mutant 19% | Scavenger-Mutant Dominant Class ---------------- Mutant | -10/Materials Mutant | -9/Materials Resources | -11 -10 -9 ----------- Run | Yrd Mat Mat Matter Collected 750 | 166 99 485 Remotely . | . . . Salvage Created 844 | . 140 704 Parts 58 | . 6 52 Haulers Intercepted 1 | . . 1 Recyclers Shooed . | . . . Parts Field Recycled . | . . . Retrieved Matter . | . . . Parts Self-Destructed . | . . . Prevented . | . . . Parts Restored . | . . . Kills | -11 -10 -9 ------- Run | Yrd Mat Mat Combat Hostiles Destroyed 21 | . 3 18 Melee 2 | . . 2 Guns 7 | . 3 4 AOE 12 | . . 12 Classes Destroyed 9 | . 1 8 Worker 5 | . . 5 Builder 2 | . . 2 Hauler 1 | . . 1 Recycler 1 | . . 1 Watcher 1 | . . 1 Grunt 15 | . 3 12 Brawler 1 | . . 1 Duelist 1 | . . 1 Sentry 4 | . . 4 Best Kill Streak 6 | . 2 6 Combat Bots Only 4 | . 2 4 Max Kills in Single Turn 3 | . 1 3 Gunslinging . | . . . Exploded 2 | . . 2 Melee 1 | . . 1 Uniques/NPCs Destroyed . | . . . Combat | -11 -10 -9 -------- Run | Yrd Mat Mat Hostile Shots Fired 219 | . 44 175 Missed 71 | . 14 57 Hits 148 | . 30 118 Melee 9 | . . 9 Projectile 139 | . 30 109 Critical Strikes 3 | . 1 2 Damage Taken 2254 | . 390 1864 Core 526 | . 117 409 Absorbed by Shields . | . . . Core Remaining (%) 76 | 100 53 . Volleys Fired 75 | . 21 54 Largest 2 | . 2 2 Hottest 130 | . 70 130 Shots Fired 135 | . 39 96 Gun 108 | . 39 69 Cannon . | . . . Launcher 27 | . . 27 Special . | . . . Kinetic 49 | . 21 28 Thermal 42 | . 7 35 Explosive 27 | . . 27 Electromagnetic 17 | . 11 6 Robot Hit Streak 5 | . 5 5 Robot Miss Streak 4 | . 4 4 Penetration Max . | . . . Secondary Targets 2 | . 2 . Max Gunslinging Chain 1 | . 1 . Shots Hit Robots 71 | . 22 49 Core Hits 59 | . 10 49 Critical Kills . | . . . Critical Parts Destroyed . | . . . Critical Strikes 1 | . 1 . Burn 1 | . 1 . Melee Attacks . | . . . Impact . | . . . Slashing . | . . . Piercing . | . . . Sneak Attacks . | . . . Combat Hostiles . | . . . Follow-up Attacks . | . . . Damage Inflicted 2288 | . 243 2045 Guns 834 | . 243 591 Cannons . | . . . Explosions 1428 | . . 1428 Melee . | . . . Ramming 26 | . . 26 Kinetic 299 | . 112 187 Thermal 502 | . 49 453 Explosive 1279 | . . 1279 Electromagnetic 182 | . 82 100 Impact . | . . . Slashing . | . . . Piercing . | . . . Highest Corruption . | . . . Average Corruption . | . . . Corruption Purged . | . . . Corruption Blocked . | . . . Overload Shots . | . . . Overflow Damage 80 | . . 80 Projectiles . | . . . Explosions 80 | . . 80 Melee . | . . . Knockbacks . | . . . Impact . | . . . Kinetic . | . . . Secondary . | . . . Self-Inflicted Damage 227 | . . 227 Shots 8 | . . 8 Rammed . | . . . Targets Rammed 9 | . . 9 Kicked 9 | . . 9 Crushed . | . . . Highest Temperature 302 | . 195 302 Average Temperature 65 | . 71 62 Received Heat Transfer 879 | . 237 642 Siege Activations . | . . . Martial Activations . | . . . Shielding Activations . | . . . Robots Disrupted . | . . . Combat Hostiles . | . . . Robots Corrupted . | . . . Combat Hostiles . | . . . Parts Fried . | . . . Impact Corruptions . | . . . Robots Melted . | . . . Combat Hostiles . | . . . Parts Melted . | . . . Heat Transferred 1249 | . 222 1027 Parts Sabotaged . | . . . Parts Stolen . | . . . Parts Stripped . | . . . Power Chain Reactions 2 | . . 2 Alert | -11 -10 -9 ------- Run | Yrd Mat Mat Maximum Alert Level 1 | . . 1 Low Security (%) 94 | 100 100 92 Level 1 5 | . . 7 Level 2 . | . . . Level 3 . | . . . Level 4 . | . . . Level 5 . | . . . High Security . | . . . Max Security . | . . . Peak Influence 221 | . 50 221 Initial . | . . . Average 102 | . 7 135 Influence Increases 814 | . 81 733 Destroy 0b10 Robot/C 420 | . 60 360 Destroy 0b10 Robot/NC 50 | . . 50 Destroy Leader 114 | . 20 94 Successful Hack 6 | . . 6 Disable Machine 45 | . . 45 Destroy Structure 134 | . 1 133 Partial Spotted 15 | . . 15 Lose Combat Pursuer 30 | . . 30 Influence Decreases 650 | . 81 569 Time Decay 500 | . 71 429 Lost Part 150 | . 10 140 Squads Dispatched 5 | . 2 3 Investigation 2 | . . 2 Extermination . | . . . Reinforcement 3 | . 2 1 Assault . | . . . Garrison . | . . . Intercept . | . . . Searches Triggered . | . . . Construction Impeded . | . . . Haulers Reinforced . | . . . Active Scanning Responses . | . . . Cargo Convoy Interrupts . | . . . Stealth | -11 -10 -9 --------- Run | Yrd Mat Mat Distress Signals 2 | . 1 1 Communications Jammed . | . . . Distress Signals . | . . . Times Spotted 31 | . 7 24 Peak Tracking Total 6 | . 4 6 Tactical Retreats 2 | . . 2 Traps | -11 -10 -9 ------- Run | Yrd Mat Mat Traps Triggered . | . . . Indirectly . | . . . Trap Hack Attempts . | . . . Triggered . | . . . Disarmed . | . . . Reprogrammed . | . . . Reused . | . . . Traps Extracted . | . . . Installed . | . . . Triggered . | . . . Machines | -11 -10 -9 ---------- Run | Yrd Mat Mat Machines Disabled 3 | . . 3 Max in Single Turn 1 | . . 1 Machines Repaired . | . . . Machines Dismantled . | . . . Machines Sabotaged . | . . . Overloaded Fab Kills . | . . . Hacking | -11 -10 -9 --------- Run | Yrd Mat Mat Machines Accessed 4 | . 1 3 Terminals . | . . . Fabricators . | . . . Repair Stations 2 | . 1 1 Recycling Units 1 | . . 1 Scanalyzers 1 | . . 1 Garrison Access . | . . . Total Hacks 17 | . 2 15 Successful 9 | . . 9 Failed 8 | . 2 6 Catastrophic 1 | . 1 . Database Lockouts . | . . . Manual . | . . . Terminals . | . . . Fabricators . | . . . Repair Stations 7 | . 2 5 Recycling Units 4 | . . 4 Scanalyzers 6 | . . 6 Garrison Access . | . . . Terminal Hacks . | . . . Fabricator Hacks . | . . . Repair Station Hacks 4 | . . 4 Scan Component 2 | . . 2 Repair 2 | . . 2 Recycling Unit Hacks 2 | . . 2 Recycle Component 2 | . . 2 Scanalyzer 3 | . . 3 Insert Component 1 | . . 1 Analyze 1 | . . 1 Retrieve Study 1 | . . 1 Garrison Access Hacks . | . . . Unauthorized Hacks . | . . . Terminals . | . . . Fabricators . | . . . Repair Stations . | . . . Recycling Units . | . . . Scanalyzers . | . . . Garrison Access . | . . . Data Cores Recovered . | . . . Used . | . . . Hacking Detections 4 | . 1 3 Full Trace Events 3 | . 1 2 Feedback Events . | . . . Feedback Blocked . | . . . Robot Schematics Acquired . | . . . Robots Built . | . . . Authchips . | . . . Time . | . . . Total Robot Build Rating . | . . . Part Schematics Acquired 1 | . . 1 Parts Built . | . . . Authchips . | . . . Time . | . . . Total Part Build Rating . | . . . Part Studies Acquired 1 | . . 1 Parts Repaired 1 | . . 1 Time 64 | . . 64 Parts Recycled 2 | . . 2 Recycled Matter . | . . . Retrieved Matter . | . . . Retrieved Components . | . . . Parts Scanalyzed 1 | . . 1 Part Schematics Acquired 1 | . . 1 Parts Damaged . | . . . Bothacking | -11 -10 -9 ------------ Run | Yrd Mat Mat Used RIF Installer . | . . . Robots Hacked . | . . . Non-combat . | . . . Combat . | . . . Robot Hacks Applied . | . . . Relay Couplers Released . | . . . Fabnet Peak Effective % . | . . . Robots Rewired . | . . . Allies Hacked . | . . . Hacks Repelled . | . . . Allies | -11 -10 -9 -------- Run | Yrd Mat Mat Total Allies . | . . . Largest Group . | . . . Highest-Rated Group . | . . . Highest-Rated Ally . | . . . Total Orders . | . . . Ally Attacks . | . . . Total Damage . | . . . Kills . | . . . Allies Corrupted . | . . . Allies Melted . | . . . Intel | -11 -10 -9 ------- Run | Yrd Mat Mat Active Infowar (turns) 1025 | . 287 738 Structural 234 | . . 234 Seismic 791 | . 287 504 Robot Analysis Total . | . . . Derelict Logs Recovered . | . . . Drone Launches . | . . . Drone Recoveries . | . . . Exploration | -11 -10 -9 ------------- Run | Yrd Mat Mat Turns Passed 1564 | 54 347 1163 Spaces Moved 669 | 41 228 400 Core 15 | 12 . 3 Treads . | . . . Legs 654 | 29 228 397 Wheels . | . . . Hover . | . . . Flight . | . . . Fastest Speed 50 | 50 120 120 Average Speed 187 | 99 120 234 Slowest Speed 1450 | 120 120 1450 Overloaded Moves . | . . . Propulsion Burnouts . | . . . Robots Hopped . | . . . Potential Cave-ins . | . . . Cave-ins Triggered . | . . . Exploration Rate (%) 26 | 3 40 35 Regions Visited 2 Branch Regions . Pre-discovered Areas . | . . . Known Exits Taken . | . . . Unknown Exits Taken 2 | 1 1 . Scrap Searched . | . . . Spaces Dug 16 | . . 16 Terrain Destroyed 165 | . . 165 Melee . | . . . Projectile . | . . . AOE 165 | . . 165 Terrain Rammed . | . . . Walls Destroyed . | . . . Machines Disabled . | . . . Actions | -11 -10 -9 --------- Run | Yrd Mat Mat Total 841 | 54 268 519 Wait 18 | . . 18 Move 667 | 40 227 400 Hop . | . . . Pick Up 38 | 9 11 18 Fast Attach . | . . . Attach 21 | 5 3 13 Detach . | . . . Swap 7 | . 1 6 Drop 6 | . 5 1 Fire 75 | . 21 54 Melee . | . . . Ram . | . . . Kick 9 | . . 9 Crush . | . . . Escape Stasis . | . . . Rewire . | . . . Trap . | . . . Miscellaneous . | . . . Route ------- -11/Scrapyard -10/Materials -9/Materials History --------- Turn | Location | Event 16 | -11/Scrapyard | Discovered new exit (range 16) 55 | -11/Scrapyard | Entered Materials 334 | -10/Materials | Build established: Mutant 397 | -10/Materials | Discovered new exit (range 3) 402 | -10/Materials | Entered another Materials area 402 | -9/Materials | Evolved 2 slots: Propulsion x2 948 | -9/Materials | Lost 4 parts (1p2n1u) 1413 | -9/Materials | Repaired Imp. Aluminum Leg 1450 | -9/Materials | Core integrity fell below 50% 1512 | -9/Materials | Lost 5 parts (3n1u1w) 1538 | -9/Materials | Core integrity fell below 20% 1565 | -9/Materials | Destroyed by G-34 Mercenary with Small Laser Last Messages --------------- 01477_ U-05 Engineer builds a Wall. 01478_ U-05 Engineer lays Concrete. 01478_ K-01 Serf collects debris. 01478_ U-05 Engineer lays Concrete. 01481_ Structural Scanner destroyed. 01482_ U-05 Engineer lays Concrete. 01488_ G-34 Mercenary destroyed. 01488_ K-01 Serf collects debris. 01489_ U-05 Engineer builds a Door. 01490_ K-01 Serf collects debris. [Achievement: Organ Harvest] 01492_ K-01 Serf collects debris. 01494_ Acquired 31 matter. 01494_ K-01 Serf collects debris. 01502_ R-06 Scavenger collects Aluminum Leg+. 01508_ R-06 Scavenger collects Melee Analysis Suite. 01519_ Acquired 46 matter. 01528_ Imp. Aluminum Leg destroyed. Map ----- +----------------------------------------------------+ | ???## ?????????????????????????????????????????? | | ???## ?????????????????????????????????????????? | | ??## ?????????????????????????????????????????? | | ### ?????????????????????????????????????????? | | ### ##???????????????????????????????????????? | | ## ###########??????????????????????????????? | | ###########??????????????????????????????? | | # ##??????????????????????????????? | | # ##??????????????????????????????? | | ## # ## ???????????????????????????? | | +#### # ## ????????????????????????? | | # # + ??????????????????????? | | ??? # # ## ^ ????????????????????? | | ???"# + ## ||! ????????????????????? | | ???"# # ## |!! # ??????????????????? | | ??? # #] ## |!! # ??????????????????? | | ??? # #######+### # ??????????????????? | | # ## + # ??????????????????? | | ##### ## """ # ##??## ??????????????????? | | ## "R"* # ##???????????????????????? | | ## "= [ # ##???????????????????????? | | ## %%#a ##???????????????????????? | | ### ## # ###### ?????????????? | | ### #####+### ##########+###???????????? | | ? # a u ????????? | | ? # @ ????????? | | ? # g ????????? | | ? ##################+########## ######???????????? | | ? ############# #### ###??????????????? | | ?????????????## ##????????????????????? | | ?????????????## ##????????????????????? | | ?????????????## """"" !##????????????????????? | | ?????????????## ##????????????????????? | | ?????????????#####/##########????????????????????? | | ????????????? ????????????????????? | | ???????????????? ??????????????????????????????? | | ????????????? ??????????????????????????????? | | ?????????????#### ??????????????????????????????? | | ?????????????#### ??????????????????????????????? | | ??????????????? # ??????????????????????????????? | | ??????????????? + ???????????????????????????????? | | ??????????????? # ???????????????????????????????? | | ????????????????#????????????????????????????????? | | ?????????????????????????????????????????????????? | | ?????????????????????????????????????????????????? | | ?????????????????????????????????????????????????? | | ?????????????????????????????????????????????????? | | ?????????????????????????????????????????????????? | | ?????????????????????????????????????????????????? | | ?????????????????????????????????????????????????? | +----------------------------------------------------+ Best States ------------- Heat Dissipation 28 Energy Generation 14 Energy Capacity 250 Matter Stores 300 Matter Capacity 300 Sight Range 16 Terrain Scan Density 10 Evasion (%) 55 Item Schematics ----------------- Imp. EM Shotgun | -9/Materials | Scanalyzed Robot Schematics ------------------ None Fabricated ------------ Nothing Repaired ---------- Nothing Studied --------- Aluminum Leg | -9/Materials | Hacked Alien Tech Used ----------------- None Achievements -------------- For Emergencies Only Ghost 'Em Item+ Oops Organ Harvest Resistances Are Futile Safety First Challenges ------------ None Game ------ Seed WeaponMyomerClaws Manual? 0 Play Time 00:14:56 Cumulative 2.2 hours Start 2026.04.16 @ 11:43:13 End 2026.04.16 @ 11:58:41 Sessions 1 Manual Loads 0 Difficulty Rogue Special Mode None Game No. 10 Rogue 10 Adventurer 0 Explorer 0 Win Type - Total 0 Types 0/0/0/0/0/0/0/0/0/0 Lore% 7 Gallery% 5 Achievement% 5 Wizard Run 0 Options --------- Layout 1 ASCII 0 Keyboard 0 Movement Mouse Keybinds 0 Fullscreen 1 Font 24/Smallcaps Map View 50x35 Zoom Use 0% Tactical HUD 1 Map Filters NONE Filters NONE Steam 1 RUN: d49081ec-d7ba-42da-825f-eb123bcd1016